Workbook

Sheet Relatório Liquidação
X1: -4.183675628e-11
E2: CRI Itaperapuã - Mapa de Liquidação
B7: Natureza do Pagamento | C7: Série | D7: Data | E7: PU Liquidação | F7: Quantidade | G7: Lançamento | H7: Razão Social | I7: CNPJ | J7: Número | K7: Banco | L7: Agência | M7: Conta | N7: ISS | O7: Valor do Serviço | P7: Gross-Up | Q7: Valor Bruto NF | R7: Retenção NF | S7: Retenção | T7: Valor | U7: Observação | V7: Enviado para pagamento
B8: Integralização | C8: 487 | D8: 2021-07-30 | E8: 1000 | F8: 4200 | G8: Integralização | T8: =E8*F8 -> 4200000 | W8: SIM
B9: Integralização | C9: 488 | D9: 2021-07-30 | E9: 1000 | F9: 2800 | G9: Integralização | T9: =E9*F9 -> 2800000 | W9: SIM (PAGO)
B10: Integralização | C10: 0 | D10: 2021-07-30 | E10: 0 | F10: 0 | G10: Integralização | T10: 0 | W10: SIM (PAGO PARCIALMENTE - Saldo restante: Valor)
B11: Integralização | C11: 0 | D11: 2021-07-30 | E11: 0 | F11: 0 | G11: Integralização | T11: 0
B12: Integralização | C12: 0 | D12: 2021-07-30 | E12: 0 | F12: 0 | G12: Integralização | T12: 0
B13: Integralização | C13: 0 | D13: 2021-07-30 | E13: 0 | F13: 0 | G13: Integralização | T13: 0
B14: Integralização | C14: Total Dia | G14: Total Integralização | T14: =SUM(T8:T13) -> 7000000
B15: Transferência | G15: Fee Estruturação | H15: Forte securitização e participações LTDA | I15: 21.567.223/0001-05 | J15: 341 | K15: Itaú Unibanco S.A. | L15: 0869-8 | M15: 12663-1 | N15: N/A | O15: =2%*T14 -> 140000 | P15: 0.1115 | Q15: =O15/(1-P15) -> 157568.9364 | R15: 0.0615 | S15: =R15*Q15 -> 9690.489589 | T15: =Q15*(1-R15) -> 147878.4468
B16: Transferência | G16: Taxa de Sucesso | H16: Forte securitização e participações LTDA | I16: 21.567.223/0001-05 | J16: 341 | K16: Itaú Unibanco S.A. | L16: 0869-8 | M16: 12663-1 | N16: N/A | O16: =2%*T14 -> 140000 | P16: 0.1115 | Q16: =O16/(1-P16) -> 157568.9364 | R16: 0.0615 | S16: =R16*Q16 -> 9690.489589 | T16: =Q16*(1-R16) -> 147878.4468
B17: Transferência | G17: Comissão Firme | H17: Forte Securitizadora S.A | I17: 12.979.898/0001-70 | J17: 341 | K17: Itaú Unibanco S.A. | L17: 0869-8 | M17: 13447-8 | N17: N/A | O17: 0 | P17: 0.0965 | Q17: 0 | R17: 0.0615 | S17: 0 | T17: 0
B18: Transferência | G18: Originador | H18: - | I18: - | L18: - | M18: - | O18: 0 | P18: 0 | Q18: 0 | R18: 0 | S18: 0 | T18: 0
B19: Aguardar Transferência | G19: Advogados - Terceiros | O19: 0 | P19: 0 | Q19: 0 | R19: 0 | S19: 0 | T19: 0
B20: Aguardar Transferência | G20: Companhia Hipotecária | H20: COMPANHIA HIPOTECÁRIA PIRATINI | I20: 18.282.093/0001-50 | J20: 237 | K20: Banco Bradesco S.A. | L20: 3145 | M20: 21476-0 | N20: N/A | O20: 0 | P20: 0.0965 | Q20: 0 | R20: 0.0615 | S20: 0 | T20: 0
B21: Aguardar Transferência | G21: Advogados - Assessoria | H21: Binari e Santos Sociedade de Advogados | I21: 29.333.942/0001-73 | O21: 94000 | P21: 0 | Q21: 94000 | R21: 0 | S21: 0 | T21: 94000
B22: Aguardar Transferência | G22: Coordenador Líder | H22: TERRA INVESTIMENTOS DTVM LTDA. | I22: 03.751.794/0001-13 | J22: 237 | K22: Banco Bradesco S.A. | L22: 560 | M22: 0156021-2 | N22: N/A | O22: 12050 | P22: 0.0965 | Q22: 13337.02269 | R22: 0 | S22: 0 | T22: 13337.02269 | V22: SIM
B23: Aguardar Transferência | G23: Engenharia | H23: HARCA ENGENHARIA EIRELI - ME | I23: 20.620.442/0001-48 | J23: 003 | K23: Caixa Econômica Federal | L23: 1959 | M23: 00000620-5 | N23: SIM | O23: 0 | P23: 0 | Q23: 0 | R23: 0 | S23: 0 | T23: 0
B24: Aguardar Transferência | G24: Auditoria Complementar | H24: CONVESTE AUDFILES SERVICOS FINANCEIROS LTDA | I24: 29.758.816/0001-60 | J24: 341 | K24: Itaú Unibanco S.A. | L24: 6630 | M24: 43542-5 | N24: N/A | O24: 10000 | P24: 0.1115 | Q24: 11254.92403 | R24: 0.0615 | S24: 692.1778278 | T24: 10562.7462 | V24: SIM
B25: Aguardar Transferência | G25: Auditoria Financeira | H25: CONVESTE AUDFILES SERVICOS FINANCEIROS LTDA | I25: 29.758.816/0001-60 | J25: 341 | K25: Itaú Unibanco S.A. | L25: 6630 | M25: 43542-5 | N25: N/A | O25: 0 | P25: 0.1115 | Q25: 0 | R25: 0.0615 | S25: 0 | T25: 0
B26: Aguardar Transferência | G26: Implantação | H26: CONVESTE AUDFILES SERVICOS FINANCEIROS LTDA | I26: 29.758.816/0001-60 | J26: 341 | K26: Itaú Unibanco S.A. | L26: 6630 | M26: 43542-5 | N26: N/A | O26: 0 | P26: 0.1115 | Q26: 0 | R26: 0.0615 | S26: 0 | T26: 0
B27: Aguardar Transferência | G27: Agente Fiduciário | H27: SIMPLIFIC PAVARINI DISTRIBUIDORA DE TÍTULOS E VALORES MOBILIÁRIOS LTDA. | I27: 15.227.994/0001-50 | J27: 237 | K27: Banco Bradesco S.A. | L27: 3428-2 | M27: 714.443-1 | N27: N/A | O27: 18000 | P27: 0.0965 | Q27: 19922.52352 | R27: 0.0615 | S27: 1225.235196 | T27: 18697.28832 | V27: SIM
B28: Aguardar Transferência | G28: Agente Custodiante | H28: SIMPLIFIC PAVARINI DISTRIBUIDORA DE TÍTULOS E VALORES MOBILIÁRIOS LTDA. | I28: 15.227.994/0001-50 | J28: 237 | K28: Banco Bradesco S.A. | L28: 3428-2 | M28: 714.443-1 | N28: N/A | O28: 3500 | P28: 0.0965 | Q28: 3873.824018 | R28: 0.0615 | S28: 238.2401771 | T28: 3635.583841 | V28: SIM
B29: Aguardar Transferência | G29: Agente Registrador CCI | H29: SIMPLIFIC PAVARINI DISTRIBUIDORA DE TÍTULOS E VALORES MOBILIÁRIOS LTDA. | I29: 15.227.994/0001-50 | J29: 237 | K29: Banco Bradesco S.A. | L29: 3428-2 | M29: 714.443-1 | N29: N/A | O29: 43140 | P29: 0.0965 | Q29: 47747.64804 | R29: 0.0615 | S29: 2936.480354 | T29: 44811.16768 | V29: SIM
B30: Aguardar Transferência | G30: Agente Fiduciário - 1ª parcela | H30: SIMPLIFIC PAVARINI DISTRIBUIDORA DE TÍTULOS E VALORES MOBILIÁRIOS LTDA. | I30: 15.227.994/0001-50 | J30: 237 | K30: Banco Bradesco S.A. | L30: 3428-2 | M30: 714.443-1 | N30: N/A | O30: 0 | P30: 0.0965 | Q30: 0 | R30: 0.0615 | S30: 0 | T30: 0
B31: Aguardar Transferência | G31: Despachante | H31: Duudocs Serviços Administrativos Ltda | I31: 32.437.359/0001-17 | J31: 341 | K31: Itaú Unibanco S.A. | L31: 0350 | M31: 32511-4 | N31: N/A | O31: 5700 | P31: 0 | Q31: 5700 | R31: 0 | S31: 0 | T31: 5700
B32: Provisão de Despesas | G32: Registro CCI B3 (Débito Automático) | H32: Forte Securitizadora S/A | I32: 12.979.898/0001-70 | S32: =+R32*Q32 -> 0 | T32: 0
B33: Provisão de Despesas | G33: Registro CRI B3 (Débito Automático) | H33: Forte Securitizadora S/A | I33: 12.979.898/0001-70 | S33: 0 | T33: 5000
B34: Provisão de Despesas | G34: Custos Mov. CRI/CCI B3 (Estimado-Deb. Aut.) | H34: Forte Securitizadora S/A | I34: 12.979.898/0001-70 | S34: 0 | T34: 0
B35: Provisão de Despesas | G35: Análise B3 | H35: Forte Securitizadora S/A | I35: 12.979.898/0001-70 | S35: =+R35*Q35 -> 0 | T35: 0
B36: Provisão de Despesas | G36: Taxa de Registro - Anbima | H36: Forte Securitizadora S/A | I36: 12.979.898/0001-70 | S36: =+R36*Q36 -> 0 | T36: ='[2]Criar Mapa'!K25 -> 1568
B37: Provisão de Despesas | G37: Rating | H37: Forte Securitizadora S/A | I37: 12.979.898/0001-70 | S37: =+R37*Q37 -> 0 | T37: ='[2]Criar Mapa'!K26 -> 26660
B38: Provisão de Despesas | G38: IOF | H38: Forte Securitizadora S/A | I38: 12.979.898/0001-70 | S38: =+R38*Q38 -> 0 | T38: ='[2]Criar Mapa'!K27 -> 0
B39: Provisão de Despesas | G39: Provisão Diversa - Advogado | O39: 0 | P39: 0 | Q39: =O39/(1-P39) -> 0 | R39: 0 | S39: =R39*Q39 -> 0 | T39: =Q39*(1-R39) -> 0
G40: Retenção de Impostos sobre NFs | T40: =SUM(T41:T51) -> 24473.11273
B41: Retenção de Impostos | G41: Imposto - Fortesec | H41: Forte Securitizadora S.A | I41: 12.979.898/0001-70 | T41: =SUMIF($I$15:$I$39,I41,$S$15:$S$39) -> 0
B42: Retenção de Impostos | G42: Imposto - FortePar | H42: Forte securitização e participações LTDA | I42: 21.567.223/0001-05 | T42: =SUMIF($I$15:$I$39,I42,$S$15:$S$39) -> 19380.97918
B43: Retenção de Impostos | G43: Imposto - Originador | H43: - | I43: - | T43: =SUMIF($I$15:$I$39,I43,$S$15:$S$39) -> 0
B44: Retenção de Impostos | G44: Imposto - Assessor Legal Terceiros | T44: 0
B45: Retenção de Impostos | G45: Imposto - Companhia Hipotecária | H45: COMPANHIA HIPOTECÁRIA PIRATINI | I45: 18.282.093/0001-50 | T45: =SUMIF($I$15:$I$39,I45,$S$15:$S$39) -> 0
B46: Retenção de Impostos | G46: Imposto - Assessor Legal | T46: =SUMIF($I$15:$I$39,I46,$S$15:$S$39) -> 0
B47: Retenção de Impostos | G47: Imposto - Coordenador Líder | H47: TERRA INVESTIMENTOS DTVM LTDA. | I47: 03.751.794/0001-13 | T47: 0
B48: Retenção de Impostos | G48: Imposto - Engenharia | H48: HARCA ENGENHARIA EIRELI - ME | I48: 20.620.442/0001-48 | T48: 0
B49: Retenção de Impostos | G49: Imposto - Auditoria | H49: CONVESTE AUDFILES SERVICOS FINANCEIROS LTDA | I49: 29.758.816/0001-60 | T49: 692.1778278
B50: Retenção de Impostos | G50: Imposto - Agente Fiduciário | H50: SIMPLIFIC PAVARINI DISTRIBUIDORA DE TÍTULOS E VALORES MOBILIÁRIOS LTDA. | I50: 15.227.994/0001-50 | T50: 4399.955728 | Y50: Integralização
B51: Retenção de Impostos | G51: Imposto - Agente Custodiante | H51: - | I51: - | T51: 0 | Y51: Integralização
B52: Transferência | G52: Reembolso Despesas | H52: Forte Securitizadora S/A | I52: 12.979.898/0001-70 | J52: 341 | K52: Itaú Unibanco S.A. | L52: 0869 | M52: 13447-8 | T52: 0
B53: Transferência | G53: Retenção de PMT | H53: Forte Securitizadora S/A | I53: 12.979.898/0001-70 | J53: 341 | K53: Itaú Unibanco S.A. | L53: 0869 | M53: 17312-0 | T53: 129307.69
B54: Transferência | G54: Quitação de Dividas | H54: Forte Securitizadora S/A | I54: 12.979.898/0001-70 | J54: 341 | K54: Itaú Unibanco S.A. | L54: 0869 | M54: 17312-0 | T54: 0
B55: Transferência | G55: Fundo de Juros | H55: Forte Securitizadora S/A | I55: 12.979.898/0001-70 | J55: 341 | K55: Itaú Unibanco S.A. | L55: 0869 | M55: 17312-0 | T55: 0
B56: Transferência | G56: Fundo de Concessão | H56: Forte Securitizadora S/A | I56: 12.979.898/0001-70 | J56: 341 | K56: Itaú Unibanco S.A. | L56: 0869 | M56: 17312-0 | T56: 0
B57: Transferência | G57: Fundo de Despesa | H57: Forte Securitizadora S/A | I57: 12.979.898/0001-70 | J57: 341 | K57: Itaú Unibanco S.A. | L57: 0869 | M57: 17312-0 | T57: ='[2]Criar Mapa'!K34 -> 0
B58: Transferência | G58: Fundo de Reserva | H58: Forte Securitizadora S/A | I58: 12.979.898/0001-70 | J58: 341 | K58: Itaú Unibanco S.A. | L58: 0869 | M58: 17312-0 | T58: ='[2]Criar Mapa'!K35 -> 292737.03
B59: Transferência | G59: Fundo de Obra | H59: Forte Securitizadora S/A | I59: 12.979.898/0001-70 | J59: 341 | K59: Itaú Unibanco S.A. | L59: 0869 | M59: 17312-0 | T59: ='[2]Criar Mapa'!K36 -> 0
B60: Transferência | G60: Fundo Diverso 1 | H60: Forte Securitizadora S/A | I60: 12.979.898/0001-70 | J60: 341 | K60: Itaú Unibanco S.A. | L60: 0869 | M60: 17312-0 | T60: ='[2]Criar Mapa'!K37 -> 0
B61: Transferência | G61: Fundo Diverso 2 | H61: Forte Securitizadora S/A | I61: 12.979.898/0001-70 | J61: 341 | K61: Itaú Unibanco S.A. | L61: 0869 | M61: 17312-0 | T61: ='[2]Criar Mapa'!K38 -> 0
B62: Transferência | G62: Livre Destinação | H62: ENCANTOS DE ITAPERAPUÃ APART SERVICE LTDA. | I62: 20.554.843/0001-47 | J62: 756 | K62: Banco Cooperativo do Brasil S.A. - Bancoob | L62: 4198 | M62: 15339-7 | T62: =-SUM(-T14,T15:T40,T53:T58,T63) -> 1180214.245
B63: Transferência | G63: Livre Destinação - Por Conta e Ordem | T63: 4853539.22
B64: Total Dia | T64: =-SUM(-T14,T15:T40,T52:T63) -> 0 | Y64: Reembolso Forte
T67: Check Impostos | U67: =ROUND(T40,2)=ROUND(SUM(S14:S64),2) -> TRUE
T69: 0
H74: Forte Securitizadora S.A.
